bitfinex-derivatives/quotes_BTCF0:USTF0_20250402
["timestamp","ask_amount","ask_price","bid_price","bid_amount"]
[1743579980201,0.12024001,84334.0,84333.0,0.19432142]
[1743579980506,0.23882561,84334.0,84333.0,0.19432142]
[1743579981018,0.23882561,84334.0,84333.0,0.178527]
[1743579981410,0.23882561,84334.0,84333.0,0.19419405]
[1743579981822,0.59962561,84334.0,84333.0,0.00124]
[1743579982122,0.118594,84329.0,84328.0,0.1185939]
[1743579982416,0.11919401,84329.0,84328.0,0.0168944]
[1743579982617,0.43203627,84329.0,84328.0,0.0168966]
[1743579983318,0.43203627,84329.0,84328.0,0.00124]
[1743579983814,0.43203627,84329.0,84312.0,0.0625]
[1743579983815,0.1186151,84313.0,84312.0,0.0625]
[1743579984022,0.11985511,84313.0,84312.0,0.01681209]
[1743579984214,0.25611469,84313.0,84312.0,0.01681209]
[1743579984619,0.37531469,84313.0,84312.0,0.00124]
[1743579984922,0.1186179,84311.0,84310.0,0.00047444]
[1743579985124,0.1194579,84311.0,84310.0,0.00131444]
[1743579985307,0.1186264,84305.0,84304.0,0.00017786]
[1743579985625,0.1186306,84302.0,84301.0,0.28374949]
[1743579985919,0.1974306,84302.0,84301.0,0.28434949]
[1743579986107,0.3329319,84302.0,84301.0,0.28434949]
[1743579988522,0.3329319,84302.0,84301.0,0.0006]
[1743579988523,0.7512319,84302.0,84301.0,0.0006]
[1743579988821,0.1186404,84295.0,84294.0,0.00047453]
[1743579989016,0.4794404,84295.0,84294.0,0.00047453]
[1743579989325,0.60824277,84295.0,84294.0,0.00047453]
[1743579989818,0.72934277,84295.0,84294.0,0.00047453]
[1743579990612,0.72934277,84295.0,84294.0,0.00107453]
[1743579991613,0.72934277,84295.0,84294.0,0.00047453]
[1743579992210,0.0593253,84288.0,84281.0,0.58]
[1743579992409,0.0593253,84288.0,84281.0,0.0006]
[1743579992410,0.4794587,84282.0,84281.0,0.0006]
[1743579992610,0.118663,84280.0,84279.0,0.1186624]
[1743579992810,0.118663,84280.0,84279.0,0.1193024]
[1743579993025,0.2513404,84280.0,84279.0,0.1193024]
[1743579993218,0.3742404,84280.0,84279.0,0.1773024]
[1743579994115,0.1326774,84280.0,84279.0,0.1773024]
[1743579994310,0.1326774,84280.0,84279.0,0.2396024]
[1743579994920,0.251339,84280.0,84279.0,0.2396024]
[1743579995315,0.1326774,84280.0,84279.0,0.2396024]
[1743579995522,0.11962161,84280.0,84279.0,0.2396024]
[1743579995912,0.25727963,84280.0,84279.0,0.1773024]
[1743579996117,0.25727963,84280.0,84279.0,0.05864]
[1743579996427,0.31557963,84280.0,84279.0,0.058]
[1743579996619,0.37677963,84280.0,84279.0,0.058]
[1743579997327,0.37677963,84280.0,84279.0,0.0586]
[1743579997515,0.37677963,84280.0,84279.0,0.058]
[1743579997822,0.37677963,84280.0,84279.0,0.05892]
[1743579998020,0.37677963,84280.0,84279.0,0.058]
[1743579998624,0.37677963,84280.0,84279.0,0.05868]
[1743579999324,0.37677963,84280.0,84279.0,0.058]
[1743579999920,0.37677963,84280.0,84279.0,0.0586]
[1743580000322,0.37677963,84280.0,84279.0,0.058]
[1743580000823,0.37677963,84280.0,84279.0,0.0586]
[1743580002925,0.73757963,84280.0,84279.0,0.0586]
[1743580003323,0.118663,84279.0,84278.0,0.00047462]
[1743580003526,0.119583,84279.0,84278.0,0.00047462]
[1743580003730,0.37044806,84279.0,84278.0,0.00107462]
[1743580005027,0.37044806,84279.0,84278.0,0.00047462]
[1743580005823,0.37044806,84279.0,84278.0,0.00107462]
[1743580006423,0.37044806,84279.0,84278.0,0.00047462]
[1743580007129,0.37044806,84279.0,84278.0,0.00111462]
[1743580008030,0.73124806,84279.0,84278.0,0.00111462]
[1743580010536,0.73124806,84279.0,84278.0,0.00047462]
[1743580010739,0.73124806,84279.0,84278.0,0.06197462]
[1743580010926,0.73124806,84279.0,84278.0,0.06257462]
[1743580014436,0.73124806,84279.0,84278.0,0.18123902]
[1743580014636,0.73124806,84279.0,84278.0,0.29843902]
[1743580015836,0.36172,84279.0,84278.0,0.29843902]
[1743580016024,0.00092,84279.0,84278.0,0.29843902]
[1743580016433,0.00092,84279.0,84278.0,0.87843902]
[1743580016641,0.118662,84280.0,84279.0,0.118663]
[1743580016831,0.119582,84280.0,84279.0,0.119263]
[1743580017037,0.119582,84280.0,84279.0,0.240963]
[1743580021438,0.480382,84280.0,84279.0,0.0605]
[1743580021744,0.60527125,84280.0,84279.0,0.178563]
[1743580021933,0.60527125,84280.0,84279.0,0.179163]
[1743580022234,0.72537125,84280.0,84279.0,0.179163]
[1743580022431,0.72537125,84280.0,84279.0,0.0605]
[1743580022631,0.72537125,84280.0,84279.0,0.179163]
[1743580022847,0.72537125,84280.0,84279.0,0.0605]
[1743580023139,0.72537125,84280.0,84279.0,0.0599]
[1743580023551,0.72537125,84280.0,84279.0,0.179203]
[1743580023846,0.72537125,84280.0,84279.0,0.178563]
[1743580024049,0.72537125,84280.0,84279.0,0.179483]
[1743580025341,0.78306928,84280.0,84279.0,0.179483]
[1743580025642,0.05861803,84280.0,84279.0,0.179483]
[1743580025842,0.05861803,84280.0,84279.0,0.240683]
[1743580026145,0.17727963,84280.0,84279.0,0.240683]
[1743580026844,0.67382105,84280.0,84279.0,0.240683]
[1743580027742,0.67382105,84280.0,84279.0,0.179483]
[1743580028047,0.67382105,84280.0,84279.0,0.178563]
[1743580028242,0.67382105,84280.0,84279.0,0.179483]
[1743580029247,0.61612302,84280.0,84279.0,0.179483]
[1743580034145,0.67792302,84280.0,84279.0,0.179483]
[1743580035051,0.31712302,84280.0,84279.0,0.179483]
[1743580035246,0.13666142,84280.0,84279.0,0.237483]
[1743580035450,0.17779204,84282.0,84281.0,0.1186601]
[1743580035744,0.21189308,84287.0,84286.0,0.1186531]
[1743580035944,0.4183,84307.0,84288.0,0.1186503]
[1743580035945,8e-05,84299.0,84288.0,0.1186503]
[1743580036152,0.00068,84299.0,84298.0,0.1186362]
[1743580036342,0.00017786,84303.0,84302.0,0.1186306]
[1743580036641,0.00017786,84303.0,84302.0,0.1195506]
[1743580036642,0.00092,84303.0,84302.0,0.1195506]
[1743580036844,0.1195492,84303.0,84302.0,0.00092]
[1743580037149,0.48640423,84303.0,84302.0,0.6995506]
[1743580037850,0.48640423,84303.0,84302.0,0.1195506]
[1743580040041,0.48640423,84303.0,84302.0,0.00092]
[1743580040242,0.48640423,84303.0,84298.0,0.0584]
[1743580040243,0.1186348,84299.0,84298.0,0.0584]
[1743580040451,0.1195548,84299.0,84298.0,0.05932]
[1743580040749,0.1195548,84299.0,84298.0,0.1779562]
[1743580040957,0.1195548,84299.0,84298.0,0.05932]
[1743580042257,0.1195548,84299.0,84298.0,0.1779562]
[1743580042956,0.1195548,84299.0,84298.0,0.05932]
[1743580044752,0.1195548,84299.0,84298.0,0.00092]
[1743580044958,0.1186376,84297.0,84296.0,0.1186386]
[1743580045259,0.1195576,84297.0,84296.0,0.1195586]
[1743580045761,0.2423576,84297.0,84296.0,0.1195586]
[1743580046752,0.2423576,84297.0,84296.0,0.1825586]
[1743580047154,0.2423576,84297.0,84296.0,0.06392]
[1743580047357,0.37947243,84297.0,84296.0,0.00092]
[1743580047564,0.1186404,84295.0,84294.0,0.00017797]
[1743580047751,0.11924041,84295.0,84294.0,0.00017797]
[1743580047951,0.24986159,84295.0,84294.0,0.00017797]
[1743580048158,0.24986159,84295.0,84294.0,0.00109797]
[1743580048457,0.24986159,84295.0,84294.0,0.00017797]
[1743580049961,0.61066159,84295.0,84294.0,0.00017797]
[1743580050458,0.61066159,84295.0,84283.0,0.0584]
[1743580050459,0.1186559,84284.0,84283.0,0.0584]
[1743580050663,0.1195759,84284.0,84283.0,0.05932]
[1743580050863,0.25273086,84284.0,84283.0,0.1779773]
[1743580051261,0.37913086,84284.0,84283.0,0.1779773]
[1743580053858,0.1186616,84280.0,84279.0,0.00177963]
[1743580054059,0.1186616,84280.0,84279.0,0.00269963]
[1743580054060,0.1193016,84280.0,84279.0,0.00269963]
[1743580054258,0.24925912,84280.0,84279.0,0.00269963]
[1743580054465,0.24925912,84280.0,84279.0,0.18516263]
[1743580054767,0.37345912,84280.0,84279.0,0.18516263]
[1743580061775,0.37345912,84280.0,84279.0,0.183383]
[1743580063670,0.00064,84280.0,84279.0,0.544183]
[1743580063876,0.14194885,84286.0,84285.0,0.1186545]
[1743580064075,0.14194885,84286.0,84285.0,0.1196145]
[1743580064076,0.26156196,84286.0,84285.0,0.1196145]
[1743580064678,0.26156196,84286.0,84285.0,0.3075145]
[1743580064878,0.32496196,84286.0,84285.0,0.3075145]
[1743580067683,0.44925845,84286.0,84285.0,0.12696]
[1743580067885,0.81005845,84286.0,84285.0,0.06496]
[1743580068184,0.44925845,84286.0,84285.0,0.1826545]
[1743580068482,0.3073096,84286.0,84285.0,0.1836145]
[1743580068679,0.00096001,84286.0,84285.0,0.2460145]
[1743580068875,0.1186521,84287.0,84286.0,0.1186531]
[1743580069077,0.11925211,84287.0,84286.0,0.2425731]
[1743580069788,0.23765211,84287.0,84286.0,0.1801731]
[1743580070578,0.23765211,84287.0,84286.0,0.2425731]
[1743580072795,0.23765211,84287.0,84286.0,0.1801731]
[1743580073797,0.37070775,84287.0,84286.0,0.1801731]
[1743580078899,0.37070775,84287.0,84286.0,0.1195731]
[1743580079103,0.1186545,84285.0,84284.0,0.177982]
[1743580079302,0.1195745,84285.0,84284.0,0.178902]
[1743580079496,0.25196493,84285.0,84284.0,0.178902]
[1743580081211,0.25196493,84285.0,84284.0,0.00092]
[1743580081911,0.118663,84279.0,84278.0,0.21238727]
[1743580082102,0.119583,84279.0,84278.0,0.33197167]
[1743580082307,0.24907978,84279.0,84278.0,0.33197167]
[1743580082508,0.36877978,84279.0,84278.0,0.33197167]
[1743580084520,0.36877978,84279.0,84278.0,0.12005902]
[1743580084714,0.36877978,84279.0,84278.0,0.00047462]
[1743580087812,0.36877978,84279.0,84278.0,0.11913902]
[1743580088312,0.00092,84279.0,84278.0,0.11913902]
[1743580088523,0.00092,84279.0,84278.0,0.12005902]
[1743580088707,0.17755312,84284.0,84283.0,0.1186573]
[1743580088902,0.1195771,84284.0,84283.0,0.1789053]
[1743580089103,0.1195771,84284.0,84283.0,0.00092]
[1743580089303,0.118663,84279.0,84278.0,0.00047462]
[1743580089512,0.1186855,84263.0,84255.0,0.28374949]
[1743580089814,0.8985055,84263.0,84262.0,0.00111471]
[1743580090008,1.02916805,84263.0,84262.0,0.00047471]
[1743580090611,1.14646805,84263.0,84262.0,0.00047471]
[1743580092613,0.1186911,84259.0,84258.0,0.15141885]
[1743580092805,0.11929111,84259.0,84258.0,5e-08]
[1743580093010,0.11929111,84259.0,84255.0,0.28374949]
[1743580093011,0.12454041,84259.0,84231.0,0.0625]
[1743580093214,0.12454041,84259.0,84230.0,0.05984049]
[1743580093215,0.1187278,84233.0,84232.0,0.2998561]
[1743580093422,0.1194878,84233.0,84232.0,0.1817277]
[1743580093621,0.2902878,84234.0,84232.0,0.3004555]
[1743580093916,0.1179,84233.0,84232.0,0.1817277]
[1743580094219,0.11858,84233.0,84232.0,0.1817277]
[1743580095220,0.2373078,84233.0,84232.0,0.1817277]
[1743580096518,0.00068,84233.0,84232.0,0.1817277]
[1743580096818,0.00017808,84241.0,84240.0,0.1187179]
[1743580097014,0.00105809,84241.0,84240.0,0.1195979]
[1743580097212,0.00105809,84241.0,84240.0,0.3015979]
[1743580098019,0.06115809,84241.0,84240.0,0.3015979]
[1743580098318,0.17705079,84249.0,84248.0,0.1187066]
[1743580098622,0.1782508,84249.0,84248.0,0.4806266]
[1743580099217,0.1782508,84249.0,84248.0,0.5988266]
[1743580101011,0.1782508,84249.0,84248.0,0.6767866]
[1743580101610,0.11990521,84249.0,84248.0,0.5988266]
[1743580101812,0.11982521,84249.0,84248.0,0.1800266]
[1743580105823,0.00112001,84249.0,84248.0,0.1800266]
[1743580106218,0.1187018,84252.0,84251.0,0.1780501]
[1743580106418,0.1187018,84252.0,84251.0,0.3621701]
[1743580106723,0.11990181,84252.0,84251.0,0.3621701]
[1743580108125,0.18090181,84252.0,84251.0,0.3621701]
[1743580109331,0.06220001,84252.0,84251.0,0.3621701]
[1743580110430,8e-05,84255.0,84254.0,0.1186982]
[1743580110726,0.00120001,84255.0,84254.0,0.1198182]
[1743580111515,0.10603772,84260.0,84259.0,0.1186911]
[1743580111724,0.10663773,84260.0,84259.0,0.4806111]
[1743580112029,0.10603772,84260.0,84259.0,0.4806111]
[1743580112325,0.10603772,84260.0,84259.0,0.49392785]
[1743580112630,0.10603772,84260.0,84259.0,0.61852785]
[1743580112822,0.10603772,84260.0,84259.0,0.6052111]
[1743580113621,0.10719772,84260.0,84259.0,0.61842297]
[1743580115224,8e-05,84270.0,84267.0,0.1186799]
[1743580115423,0.21308881,84280.0,84276.0,0.0593335]
[1743580115616,0.21384881,84280.0,84279.0,0.479463]
[1743580115817,0.21384881,84280.0,84279.0,0.480983]
[1743580116029,0.0004,84287.0,84286.0,0.1186531]
[1743580116229,0.0004,84287.0,84286.0,0.1202931]
[1743580116422,0.1190517,84287.0,84286.0,0.1202931]
[1743580116618,0.1190517,84287.0,84286.0,0.2453931]
[1743580116815,0.1197717,84287.0,84286.0,0.2453931]
[1743580117228,0.1794717,84287.0,84286.0,0.2453931]
[1743580121028,0.06082,84287.0,84286.0,0.2453931]
[1743580121327,0.0601,84287.0,84286.0,0.2453931]
[1743580121731,0.1794717,84287.0,84286.0,0.2453931]
[1743580122626,0.06082,84287.0,84286.0,0.2453931]
[1743580122824,0.00112,84287.0,84286.0,0.2453931]
[1743580123019,0.1197717,84287.0,84286.0,0.2453931]
[1743580123233,0.1769717,84287.0,84286.0,0.2453931]
[1743580125035,0.1769717,84287.0,84286.0,0.1824931]
[1743580126431,0.1762517,84287.0,84286.0,0.1824931]
[1743580126838,0.1769717,84287.0,84286.0,0.1824931]
[1743580129246,0.1769717,84287.0,84286.0,0.00164]
[1743580129546,0.118663,84279.0,84278.0,0.11884097]
[1743580129743,0.118663,84279.0,84278.0,0.12048097]
[1743580130243,0.24858626,84279.0,84278.0,0.00181797]
[1743580130439,0.37188626,84279.0,84278.0,0.00181797]
[1743580130739,0.37188626,84279.0,84278.0,0.12048237]
[1743580131932,0.37260626,84279.0,84278.0,0.12048237]
[1743580136440,0.37188626,84279.0,84278.0,0.12048237]
[1743580136743,0.37260626,84279.0,84278.0,0.12048237]
[1743580139346,0.37260626,84279.0,84278.0,0.18078237]
[1743580140449,0.12402,84279.0,84278.0,0.18078237]
[1743580140637,0.00072,84279.0,84278.0,0.30408237]
[1743580141849,0.0593279,84284.0,84283.0,0.1186559]
[1743580142150,0.1188,84285.0,84284.0,0.1186559]
[1743580142355,0.1188,84285.0,84284.0,0.1776359]
[1743580142554,0.2374545,84285.0,84284.0,0.1776359]
[1743580144247,0.2374545,84285.0,84284.0,0.1203359]
[1743580149544,0.2374545,84285.0,84284.0,0.00168]
[1743580149851,0.36097334,84285.0,84284.0,0.00168]
[1743580150041,0.1779937,84281.0,84280.0,0.0593307]
[1743580150557,0.48844196,84281.0,84280.0,0.0593307]
[1743580151356,0.48844196,84281.0,84280.0,0.1779923]
[1743580152755,0.118663,84279.0,84278.0,0.05951007]
[1743580152961,0.118663,84279.0,84278.0,0.06115007]
[1743580153164,0.24365908,84279.0,84278.0,0.06115007]
[1743580157064,0.24365908,84279.0,84278.0,0.05951007]
[1743580158561,0.24365908,84279.0,84278.0,0.11661007]
[1743580158763,0.24365908,84279.0,84278.0,0.11825007]
[1743580159464,0.24365908,84279.0,84278.0,0.06115007]
[1743580159656,0.24365908,84279.0,84278.0,0.05951007]
[1743580160370,0.24365908,84279.0,84278.0,0.00017797]
[1743580160668,0.24365908,84279.0,84278.0,0.11884237]
[1743580160856,0.24365908,84279.0,84278.0,0.00017797]
[1743580162960,0.30135769,84279.0,84278.0,0.00017797]
[1743580167570,0.71965769,84279.0,84278.0,0.00017797]
[1743580168166,1.08045769,84279.0,84278.0,0.00017797]
[1743580170865,1.02275908,84279.0,84278.0,0.00017797]
[1743580171975,0.66195908,84279.0,84278.0,0.11884237]
[1743580172173,0.54329608,84279.0,84278.0,0.12048237]
[1743580172374,0.2125651,84285.0,84284.0,0.1186559]
[1743580172573,0.11881907,84295.0,84288.0,0.0593248]
[1743580172774,0.1186433,84293.0,84292.0,0.3608]
[1743580172974,0.25525439,84293.0,84292.0,0.36244]
[1743580173170,0.25525439,84293.0,84292.0,0.00164]
[1743580173380,0.1186475,84290.0,84289.0,0.0628]
[1743580173980,0.25593133,84290.0,84289.0,0.0628]
[1743580174278,0.25593133,84290.0,84278.0,0.00017797]
[1743580174279,0.118663,84279.0,84278.0,0.00017797]
[1743580174474,0.479463,84279.0,84278.0,0.00017797]
[1743580174776,0.61415048,84279.0,84278.0,0.00017797]
[1743580176878,0.61415048,84279.0,84278.0,0.00181797]
[1743580177580,0.61415048,84279.0,84278.0,0.00017797]
[1743580178472,0.79174183,84279.0,84278.0,0.00017797]
[1743580180267,0.79174183,84279.0,84278.0,0.00181797]
[1743580180673,0.79174183,84279.0,84278.0,0.00017797]
[1743580181069,0.79174183,84279.0,84278.0,0.00189797]
[1743580181469,0.79174183,84279.0,84278.0,0.00017797]
[1743580182578,0.6718523,84279.0,84278.0,0.00017797]
[1743580183881,0.0593352,84274.0,84270.0,0.00096]
[1743580184083,0.4794742,84271.0,84270.0,0.00096]
[1743580184280,0.4794742,84271.0,84270.0,0.00268]
[1743580184480,0.61430139,84271.0,84270.0,0.00268]
[1743580185276,0.61430139,84271.0,84270.0,0.1213556]
[1743580185786,0.61430139,84271.0,84270.0,0.00268]
[1743580185984,0.61430139,84271.0,84270.0,0.00104]
[1743580186187,0.61430139,84271.0,84270.0,0.00276]
[1743580186581,0.73200139,84271.0,84270.0,0.00276]
[1743580186779,0.73200139,84271.0,84270.0,0.00104]
[1743580186980,0.61430139,84271.0,84270.0,0.1821156]
[1743580187179,0.61430139,84271.0,84270.0,0.2429956]
[1743580187679,0.67650139,84271.0,84270.0,0.2429956]
[1743580191577,0.31570139,84271.0,84270.0,0.2429956]
[1743580193182,8e-05,84275.0,84270.0,0.2429956]
[1743580193183,0.17779762,84275.0,84274.0,0.11867]
[1743580193388,0.17771762,84275.0,84274.0,0.11867]
[1743580193682,0.17771762,84275.0,84274.0,0.12031]
[1743580193880,0.17771762,84275.0,84274.0,0.18131]
[1743580196394,0.1186636,84279.0,84278.0,0.1186644]
[1743580196688,0.1186636,84279.0,84278.0,0.4811044]
[1743580196888,0.1186636,84279.0,84278.0,0.1203044]
[1743580197076,0.1187406,84281.0,84280.0,0.1186616]
[1743580197281,0.1187406,84281.0,84280.0,0.1203816]
[1743580198191,8e-05,84281.0,84280.0,0.1203816]
[1743580199993,8e-05,84281.0,84280.0,0.13325931]
[1743580200692,0.1187401,84281.0,84280.0,0.1203816]
[1743580201283,0.2394401,84281.0,84280.0,0.1203816]
[1743580201894,0.36927702,84281.0,84280.0,0.1203816]
[1743580203979,0.36927702,84281.0,84280.0,0.00172]
[1743580204179,0.36927702,84281.0,84275.0,0.0593338]
[1743580204180,0.1186672,84276.0,84275.0,0.0593338]
[1743580204490,0.4794672,84276.0,84275.0,0.00164]
[1743580204695,0.1186742,84271.0,84270.0,0.1790459]
[1743580204992,0.1186742,84271.0,84270.0,0.1806059]
[1743580205183,0.24310704,84271.0,84270.0,0.1806059]
[1743580205585,0.36570704,84271.0,84270.0,0.1806059]
[1743580205890,0.36570704,84271.0,84270.0,0.0619371]
[1743580206497,0.36570704,84271.0,84270.0,0.0609771]
[1743580206697,0.36642704,84271.0,84270.0,0.0609771]
[1743580206890,0.36642704,84271.0,84270.0,0.0619371]
[1743580207981,0.36642704,84271.0,84270.0,0.0602971]
[1743580208184,0.36642704,84271.0,84270.0,0.00096]
[1743580208392,0.36642704,84271.0,84262.0,0.00065268]
[1743580208393,0.1186855,84263.0,84262.0,0.00065268]
[1743580208694,0.1186855,84263.0,84262.0,0.00237268]
[1743580208890,0.25280625,84263.0,84262.0,0.00073268]
[1743580209287,0.37200625,84263.0,84262.0,0.00073268]
[1743580209592,0.37200625,84263.0,84262.0,0.00065268]
[1743580211995,0.37272625,84263.0,84262.0,0.00065268]
[1743580212398,0.43043952,84263.0,84262.0,0.00065268]
[1743580213090,0.43043952,84263.0,84262.0,0.11933958]
[1743580213290,0.43043952,84263.0,84262.0,0.12097958]
[1743580213291,0.25095402,84263.0,84262.0,0.12097958]
[1743580213684,0.25095402,84263.0,84262.0,0.17997958]
[1743580213998,0.05843327,84263.0,84262.0,0.75997958]
[1743580214192,0.21324687,84265.0,84264.0,0.1186841]
[1743580214391,0.21324687,84265.0,84264.0,0.4811241]
[1743580214903,0.21324687,84265.0,84264.0,1.0611241]
[1743580215895,8e-05,84267.0,84266.0,0.1186813]
[1743580216091,8e-05,84267.0,84266.0,0.1203213]
[1743580216495,8e-05,84267.0,84266.0,0.1796213]
[1743580217899,8e-05,84267.0,84266.0,0.5404213]
[1743580218897,0.06217797,84271.0,84270.0,0.1186756]
[1743580218898,0.00017797,84271.0,84270.0,0.1186756]
[1743580219097,0.00017797,84271.0,84270.0,0.1981156]
[1743580219299,0.00017797,84271.0,84270.0,0.3198156]
[1743580221498,0.00017797,84271.0,84270.0,0.6806156]
[1743580226303,0.11885217,84271.0,84270.0,0.6806156]
[1743580226609,0.2510216,84271.0,84270.0,0.36244]
[1743580226807,0.2510216,84271.0,84270.0,0.4811156]
[1743580227408,0.3131216,84271.0,84270.0,0.4811156]
[1743580230516,0.3131216,84271.0,84270.0,0.36244]
[1743580230816,0.3131216,84271.0,84270.0,0.00164]
[1743580231012,0.3131216,84271.0,84270.0,0.1186756]
[1743580231208,0.3131216,84271.0,84270.0,0.1203956]
[1743580235201,0.1944474,84271.0,84270.0,0.1819956]
[1743580235400,0.00017797,84271.0,84270.0,0.5427956]
[1743580235812,0.00017797,84271.0,84270.0,0.6633956]
[1743580236008,0.00017797,84271.0,84270.0,1.2433956]
[1743580236211,0.00017797,84271.0,84270.0,1.3214756]
[1743580237115,0.00017797,84271.0,84270.0,0.7414756]
[1743580239629,0.11885217,84271.0,84270.0,0.00172]
[1743580239815,0.1186827,84265.0,84264.0,8e-05]
[1743580240017,0.1186827,84265.0,84264.0,0.00164]
[1743580240705,0.2427827,84265.0,84264.0,0.00164]
[1743580240906,0.36835861,84265.0,84264.0,0.00164]
[1743580241109,0.1186855,84263.0,84262.0,0.21274946]
[1743580241315,0.1186855,84263.0,84262.0,0.21446946]
[1743580242717,0.1186855,84263.0,84262.0,0.00237268]
[1743580244122,0.1186855,84263.0,84262.0,0.00065268]
[1743580247218,0.1186855,84263.0,84262.0,0.11933958]
[1743580247526,0.1186855,84263.0,84262.0,0.12097958]
[1743580248925,0.4795174,84265.0,84264.0,0.1186841]
[1743580249116,0.3608338,84265.0,84264.0,0.1203241]
[1743580249320,0.44900963,84265.0,84264.0,0.1203241]
[1743580251035,0.38900963,84265.0,84264.0,0.1203241]
[1743580251234,0.14203609,84265.0,84264.0,0.1203241]
[1743580252131,0.20373609,84265.0,84264.0,0.1203241]
[1743580252534,0.32241879,84265.0,84264.0,0.1203241]
[1743580252924,0.1803827,84265.0,84264.0,0.1203241]
[1743580255138,0.0617,84265.0,84264.0,0.1203241]
[1743580255342,0.0617,84265.0,84264.0,0.2388241]
[1743580255737,0.0593385,84269.0,84266.0,0.1780184]
[1743580255942,0.1186799,84267.0,84266.0,0.1796984]
[1743580256744,0.1186799,84267.0,84266.0,0.1797784]
[1743580261552,0.1186799,84267.0,84266.0,0.1796984]
[1743580261753,0.10652309,84272.0,84270.0,0.1186756]
[1743580262047,0.14211609,84276.0,84271.0,0.5420742]
[1743580262255,0.21324687,84286.0,84271.0,0.5420742]
[1743580262256,0.21324687,84286.0,84285.0,0.1186545]
[1743580262452,0.21324687,84286.0,84285.0,0.5590145]
[1743580262642,0.1797394,84296.0,84295.0,0.1186404]
[1743580262844,0.1797394,84296.0,84295.0,0.1203604]
[1743580263148,0.1797394,84296.0,84295.0,0.1202804]
[1743580265853,0.0611,84296.0,84295.0,0.1202804]
[1743580266249,8e-05,84299.0,84298.0,0.1186362]
[1743580266454,0.0004,84319.0,84312.0,0.0593079]
[1743580266654,0.0004,84319.0,84318.0,0.1186081]
[1743580266858,0.0644,84319.0,84318.0,0.1202481]
[1743580267161,0.0004,84319.0,84318.0,0.1202481]
[1743580271058,0.0004,84319.0,84318.0,0.1835481]
[1743580271266,0.1190067,84319.0,84318.0,0.1835481]
[1743580271446,0.1190067,84319.0,84318.0,0.2448481]
[1743580271646,0.0004,84319.0,84318.0,0.2448481]
[1743580272253,0.0004,84319.0,84318.0,0.6056481]
[1743580273352,0.1190067,84319.0,84318.0,0.6056481]
[1743580273855,0.1190067,84319.0,84318.0,0.5443481]
[1743580274050,0.1190067,84319.0,84318.0,0.4810481]
[1743580274362,0.60328066,84319.0,84318.0,0.00164]
[1743580274657,0.60328066,84319.0,84313.0,0.07804]
[1743580274658,0.1186137,84314.0,84313.0,0.1966551]
[1743580274860,0.1186137,84314.0,84313.0,0.1982951]
[1743580275560,0.2442137,84314.0,84313.0,0.1982951]
[1743580275757,0.2442137,84314.0,84313.0,0.1202551]
[1743580276854,0.0633,84314.0,84313.0,0.1202551]
[1743580277061,0.0623,84318.0,84317.0,0.1186095]
[1743580277255,0.1809081,84318.0,84317.0,0.4810495]
[1743580277464,0.2442081,84318.0,84317.0,0.4810495]
[1743580277758,0.2442081,84318.0,84317.0,0.6034495]
[1743580278953,0.0004,84319.0,84318.0,0.1186081]
[1743580279153,0.0004,84319.0,84318.0,0.2373481]
[1743580283959,0.0004,84319.0,84318.0,0.8173481]
[1743580284369,0.0004,84319.0,84318.0,1.1781481]
[1743580285165,8e-05,84326.0,84325.0,0.1185982]
[1743580285366,0.06008,84326.0,84325.0,0.5587982]
[1743580285561,0.06,84326.0,84325.0,0.6173982]
[1743580286263,0.1185871,84333.0,84332.0,0.118587]
[1743580286469,0.1185871,84333.0,84332.0,0.120227]
[1743580286663,8e-05,84334.0,84333.0,0.118587]
[1743580286865,8e-05,84334.0,84333.0,0.183927]
[1743580287171,0.1189842,84335.0,84334.0,0.1185856]
[1743580287354,0.0004,84335.0,84334.0,0.1203056]
[1743580288060,0.1189842,84335.0,84334.0,0.1203056]
[1743580288255,0.0004,84335.0,84334.0,0.1203056]
[1743580288567,0.0004,84335.0,84334.0,0.1837056]
[1743580289269,0.0004,84335.0,84334.0,0.5445056]
[1743580290062,0.11875257,84342.0,84340.0,0.1185771]
[1743580290063,8e-05,84341.0,84340.0,0.1185771]
[1743580290261,8e-05,84341.0,84340.0,0.1202171]
[1743580291554,0.1186557,84341.0,84340.0,0.1202171]
[1743580291763,0.2383557,84341.0,84340.0,0.1202171]
[1743580293473,0.2383557,84341.0,84340.0,0.1978171]
[1743580294368,0.2383557,84341.0,84340.0,0.1202171]
[1743580295472,0.00017787,84342.0,84340.0,0.1202171]
[1743580295473,0.00017787,84342.0,84341.0,0.1185757]
[1743580295669,0.1189617,84351.0,84350.0,0.1185631]
[1743580295965,0.0004,84351.0,84350.0,0.1978831]
[1743580296363,8e-05,84358.0,84357.0,0.1185532]
[1743580296564,0.303549,84360.0,84359.0,0.1185504]
[1743580296760,0.18516,84360.0,84359.0,0.1202304]
[1743580297062,0.12556,84360.0,84359.0,0.1202304]
[1743580297262,0.244109,84360.0,84359.0,0.1202304]
[1743580297473,0.243949,84360.0,84359.0,0.1202304]
[1743580297868,0.243949,84360.0,84359.0,0.00168]
[1743580298468,0.3698584,84360.0,84359.0,0.00168]
[1743580298871,0.1185575,84354.0,84353.0,0.1185582]
[1743580299070,0.1185575,84354.0,84353.0,0.1202382]
[1743580299772,0.2406575,84354.0,84353.0,0.1202382]
[1743580300177,0.36732729,84354.0,84353.0,0.1202382]
[1743580302477,8e-05,84364.0,84363.0,0.1185448]
[1743580302769,8e-05,84364.0,84363.0,0.1202648]
[1743580302971,0.12631161,84364.0,84363.0,0.1202648]
[1743580303378,0.1185434,84364.0,84363.0,0.1202648]
[1743580303778,0.37349122,84364.0,84363.0,0.1202648]
[1743580304672,0.25494782,84364.0,84363.0,0.1202648]
[1743580304969,0.1223,84364.0,84363.0,0.1202648]
[1743580305177,0.1223,84364.0,84363.0,0.1791648]
[1743580305366,0.1223,84364.0,84363.0,0.2427648]
[1743580305367,0.0633,84364.0,84363.0,0.2427648]
[1743580305567,0.00011654,84366.0,84365.0,0.118542]
[1743580305767,0.11865714,84366.0,84365.0,0.481022]
[1743580305961,0.24405714,84366.0,84365.0,0.481022]
[1743580306171,0.12551654,84366.0,84365.0,0.481022]
[1743580307174,0.00011654,84366.0,84365.0,0.481022]
[1743580307471,0.11865714,84366.0,84365.0,0.481022]
[1743580307678,0.24405714,84366.0,84365.0,0.481022]
[1743580313264,0.24405714,84366.0,84365.0,0.541422]
[1743580317581,0.00011654,84366.0,84365.0,0.541422]
[1743580317778,0.00011654,84366.0,84365.0,0.55687598]
[1743580318281,2.00511654,84366.0,84365.0,0.62097598]
[1743580318873,2.12365714,84366.0,84365.0,0.62097598]
[1743580319078,2.24535714,84366.0,84365.0,0.55687598]
[1743580319676,2.24535714,84366.0,84365.0,0.541422]
[1743580321983,2.24535714,84366.0,84365.0,0.06208]
[1743580322189,0.1185532,84357.0,84356.0,0.5386256]